bitfinex/quotes_SOLUSD_20240708
["timestamp","ask_amount","ask_price","bid_price","bid_amount"]
[1720435463103,7.1156,140.54,140.46,0.17]
[1720435463492,7.1154,140.54,140.46,0.17]
[1720435464607,7.1161,140.53,140.46,0.17]
[1720435464997,7.1165,140.52,140.45,6.1365]
[1720435466310,34.06,140.55,140.4,4.75815303]
[1720435466311,15.8038,140.51,140.4,4.75815303]
[1720435466614,7.119,140.47,140.39,34.862063]
[1720435466796,7.1185,140.48,140.39,34.862063]
[1720435466996,7.1185,140.48,140.39,6.3226]
[1720435467410,7.119,140.47,140.39,6.3226]
[1720435467599,7.1186,140.48,140.39,6.3226]
[1720435467805,7.1203,140.45,140.39,6.3226]
[1720435468198,7.1195,140.46,140.39,6.3226]
[1720435469291,7.1195,140.46,140.4,0.17]
[1720435469921,36.4552,140.45,140.32,6.625]
[1720435470212,36.4552,140.45,140.35,7.40116521]
[1720435470213,20.0,140.45,140.35,7.40116521]
[1720435470416,27.1203,140.45,140.32,11.47456413]
[1720435470719,7.1205,140.44,140.35,7.40076756]
[1720435470893,7.1205,140.44,140.32,11.47456413]
[1720435471094,7.1205,140.44,140.38,7.1234]
[1720435471295,7.1205,140.44,140.39,0.17]
[1720435471991,7.1205,140.44,140.39,7.293]
[1720435472196,7.1205,140.44,140.39,0.17]
[1720435472609,27.1201,140.45,140.39,7.2926]
[1720435472816,7.1189,140.47,140.41,7.1219]
[1720435473013,7.1189,140.47,140.42,0.17]
[1720435474002,15.6644,140.48,140.42,0.17]
[1720435474208,27.119,140.47,140.42,0.17]
[1720435474506,7.1195,140.46,140.42,0.17]
[1720435474709,27.1191,140.47,140.42,0.17]
[1720435475115,7.1195,140.46,140.42,0.17]
[1720435475700,7.121,140.43,140.35,13.86916853]
[1720435475903,7.1205,140.44,140.35,13.86916853]
[1720435476702,7.1205,140.44,140.38,7.1234]
[1720435477211,7.1205,140.44,140.39,0.17]
[1720435477901,7.1213,140.43,140.39,0.17]
[1720435478528,7.1205,140.44,140.39,0.17]
[1720435478945,7.12,140.45,140.39,7.2926]
[1720435479238,27.1205,140.44,140.39,7.2926]
[1720435479433,23.41565197,140.52,140.39,0.17]
[1720435479741,7.1176,140.5,140.44,7.12]
[1720435479926,7.1171,140.51,140.45,7.2898]
[1720435480445,7.118,140.49,140.45,0.17]
[1720435480613,7.1176,140.5,140.45,0.17]
[1720435481524,16.5622,140.52,140.45,0.17]
[1720435481843,23.6787,140.52,140.45,0.17]
[1720435482506,23.6786,140.52,140.45,0.17]
[1720435483025,7.117,140.51,140.45,0.17]
[1720435484225,16.5622,140.52,140.45,0.17]
[1720435484427,23.6788,140.52,140.45,0.17]
[1720435484937,7.1169,140.51,140.45,0.17]
[1720435485441,23.6787,140.52,140.45,0.17]
[1720435485615,23.6787,140.52,140.44,0.17]
[1720435485817,16.5622,140.52,140.42,6.0535]
[1720435486022,7.1178,140.5,140.42,6.0535]
[1720435486228,16.5622,140.52,140.42,6.0535]
[1720435486744,7.1182,140.49,140.42,6.0535]
[1720435487342,7.1182,140.49,140.43,0.17]
[1720435487807,7.1175,140.5,140.43,0.17]
[1720435488012,7.1179,140.49,140.43,0.17]
[1720435488627,7.1179,140.49,140.43,6.2235]
[1720435489414,7.1176,140.5,140.43,6.2235]
[1720435492749,16.5622,140.52,140.43,6.0535]
[1720435493044,54.06,140.51,140.38,13.79733318]
[1720435493258,54.06,140.51,140.39,20.0]
[1720435493545,7.1193,140.47,140.39,20.0]
[1720435493751,7.1193,140.47,140.38,13.79733318]
[1720435494114,7.1185,140.48,140.38,13.79733318]
[1720435494317,71.8525,140.51,140.38,13.79733318]
[1720435494318,17.7954,140.49,140.38,13.79733318]
[1720435494539,7.1191,140.47,140.38,13.79733318]
[1720435494912,7.1185,140.48,140.38,13.79733318]
[1720435495745,7.1185,140.48,140.39,0.17]
[1720435496043,7.118,140.49,140.39,0.17]
[1720435496224,20.0,140.48,140.39,0.17]
[1720435496815,7.1176,140.5,140.39,0.17]
[1720435497040,7.117,140.51,140.39,20.17]
[1720435497227,7.117,140.51,140.4,34.06]
[1720435497430,7.117,140.51,140.41,0.17]
[1720435499845,7.1174,140.5,140.41,0.17]
[1720435500025,16.5622,140.52,140.41,0.17]
[1720435500434,7.1178,140.5,140.41,0.17]
[1720435500839,7.1169,140.51,140.41,0.17]
[1720435501045,7.1175,140.5,140.41,0.17]
[1720435502248,7.118,140.49,140.41,0.17]
[1720435502423,7.1175,140.5,140.41,0.17]
[1720435503045,7.1152,140.55,140.43,34.06]
[1720435503228,15.627,140.56,140.43,34.06]
[1720435503229,22.7414,140.56,140.44,120.17]
[1720435503625,7.1149,140.55,140.44,120.17]
[1720435504043,7.1149,140.55,140.45,8.56133119]
[1720435504419,7.1133,140.59,140.46,160.3221]
[1720435504618,15.627,140.6,140.47,8.56133119]
[1720435504822,15.627,140.6,140.48,20.17]
[1720435505237,7.1145,140.56,140.48,0.17]
[1720435505429,67.4684,140.6,140.46,6.0921]
[1720435505430,17.7852,140.57,140.46,6.0921]
[1720435505637,7.1149,140.55,140.46,6.0921]
[1720435505843,67.4684,140.6,140.46,6.0921]
[1720435506035,7.1151,140.55,140.46,6.0921]
[1720435506353,7.1145,140.56,140.46,6.0921]
[1720435506662,15.627,140.6,140.46,206.0921]
[1720435506834,22.7394,140.6,140.48,34.06]
[1720435507026,7.1119,140.61,140.5,6.0869]
[1720435507351,7.1114,140.62,140.51,20.17]
[1720435508153,7.1124,140.6,140.51,20.17]
[1720435509153,7.112,140.61,140.51,20.17]
[1720435509656,7.1114,140.62,140.52,6.2551]
[1720435509864,33.9021,140.69,140.54,34.06]
[1720435510151,7.1098,140.65,140.55,0.17]
[1720435510654,7.1104,140.64,140.55,0.17]
[1720435511025,17.7725,140.67,140.55,0.17]
[1720435511228,7.1123,140.6,140.55,0.17]
[1720435511444,7.1123,140.6,140.52,6.2551]
[1720435511445,7.1127,140.6,140.52,6.2551]
[1720435512140,7.1119,140.61,140.52,6.2551]
[1720435512864,7.1119,140.61,140.53,0.17]
[1720435513172,41.1712,140.63,140.53,0.17]
[1720435513456,41.1712,140.63,140.49,6.1291]
[1720435513457,7.115,140.55,140.49,6.1291]
[1720435513632,7.1154,140.54,140.49,6.1291]
[1720435514428,7.115,140.55,140.49,6.1291]
[1720435514841,7.115,140.55,140.5,0.17]
[1720435515056,7.115,140.55,140.49,6.1291]
[1720435516850,7.1144,140.56,140.5,0.17]
[1720435517426,7.1138,140.58,140.5,0.17]
[1720435517632,16.0595,140.62,140.5,0.17]
[1720435517838,54.06,140.61,140.5,0.17]
[1720435518043,7.1132,140.59,140.5,0.17]
[1720435518233,27.1134,140.58,140.5,0.17]
[1720435521157,7.1152,140.55,140.5,0.17]
[1720435522558,7.114,140.57,140.5,0.17]
[1720435525458,34.06,140.58,140.5,0.17]
[1720435525661,7.6488353,140.63,140.51,100.0]
[1720435525959,7.1103,140.64,140.52,134.23]
[1720435526262,7.1105,140.64,140.54,6.4113]
[1720435526443,7.1109,140.63,140.55,0.17]
[1720435526762,7.1104,140.64,140.55,0.17]
[1720435527063,7.1109,140.63,140.55,0.17]
[1720435528068,7.1114,140.62,140.55,0.17]
[1720435528359,34.06,140.63,140.55,0.17]
[1720435529458,7.1133,140.59,140.55,0.17]
[1720435529663,7.1133,140.59,140.54,6.4113]
[1720435529870,7.1124,140.6,140.54,6.4113]
[1720435530239,51.8378,140.63,140.54,6.4113]
[1720435530240,7.1114,140.62,140.54,6.4113]
[1720435530869,34.06,140.63,140.54,6.4113]
[1720435531049,7.1107,140.64,140.55,0.17]
[1720435531241,49.5465,140.66,140.55,0.17]
[1720435531756,7.1099,140.65,140.55,0.17]
[1720435534244,7.1099,140.65,140.55,20.17]
[1720435534661,7.1092,140.67,140.55,20.17]
[1720435534839,7.1095,140.66,140.56,100.0]
[1720435535042,7.1089,140.67,140.57,20.17]
[1720435535282,17.88494786,140.69,140.58,6.3239]
[1720435535455,7.1086,140.68,140.59,20.17]
[1720435535870,16.2685,140.69,140.59,20.17]
[1720435536065,7.11,140.65,140.59,20.17]
[1720435536249,7.1102,140.65,140.59,0.17]
[1720435536745,34.0382,140.69,140.59,0.17]
[1720435536946,7.1104,140.64,140.59,0.17]
[1720435537455,7.1118,140.62,140.59,0.17]
[1720435537970,7.1119,140.61,140.54,6.101]
[1720435538672,7.1115,140.62,140.54,6.101]
[1720435538848,7.1119,140.61,140.54,6.101]
[1720435539165,34.06,140.64,140.54,6.101]
[1720435539166,7.1124,140.6,140.54,6.101]
[1720435539654,7.112,140.61,140.54,6.101]
[1720435540054,7.1115,140.62,140.54,6.101]
[1720435540663,7.1115,140.62,140.55,0.17]
[1720435541155,7.113,140.59,140.55,0.17]
[1720435541680,7.112,140.61,140.55,0.17]
[1720435542754,7.1114,140.62,140.55,0.17]
[1720435543873,7.112,140.61,140.55,0.17]
[1720435544168,7.1125,140.6,140.55,0.17]
[1720435546486,7.1119,140.61,140.55,0.17]
[1720435547361,7.1127,140.6,140.55,0.17]
[1720435547755,7.1129,140.59,140.55,0.17]
[1720435547956,7.1129,140.59,140.54,6.101]
[1720435547957,7.1144,140.56,140.5,6.0328]
[1720435548161,7.114,140.57,140.5,6.0328]
[1720435549379,7.1135,140.58,140.5,6.0328]
[1720435549567,7.1129,140.59,140.5,6.0328]
[1720435549967,7.1134,140.58,140.5,6.0328]
[1720435550358,7.1134,140.58,140.51,0.17]
[1720435550562,17.7815,140.6,140.51,0.17]
[1720435550756,7.1145,140.56,140.51,0.17]
[1720435550955,7.1157,140.54,140.5,6.0328]
[1720435551392,68.4437,140.58,140.45,6.4738]
[1720435551557,7.1155,140.54,140.46,20.0]
[1720435551757,7.1155,140.54,140.45,26.4738]
[1720435551758,7.116,140.53,140.45,6.4738]
[1720435553179,23.7129,140.58,140.47,100.0]
[1720435553376,73.2123,140.61,140.48,0.17]
[1720435553702,7.1135,140.58,140.48,0.17]
[1720435556674,73.2123,140.61,140.48,0.17]
[1720435556866,7.1145,140.56,140.48,0.17]
[1720435557068,7.114,140.57,140.47,0.17]
[1720435558087,7.1144,140.56,140.47,0.17]
[1720435558491,7.1136,140.58,140.47,100.17]
[1720435558878,7.114,140.57,140.47,0.17]
[1720435559784,7.1138,140.58,140.47,100.17]
[1720435559990,73.2123,140.61,140.47,100.17]
[1720435560286,20.0,140.6,140.47,100.17]
[1720435560788,20.0,140.6,140.47,0.17]
[1720435560998,7.1154,140.54,140.47,0.17]
[1720435561190,20.0,140.6,140.46,0.17]
[1720435561191,17.7857,140.57,140.46,0.17]
[1720435561379,7.1164,140.52,140.45,6.4738]
[1720435563384,7.117,140.51,140.45,6.4738]
[1720435564568,7.1175,140.5,140.41,6.4737]
[1720435565366,73.9543,140.55,140.41,6.4737]
[1720435565367,7.1171,140.51,140.41,6.4737]
[1720435565883,39.8943,140.55,140.41,6.4737]
[1720435566089,22.1066,140.55,140.41,106.4737]
[1720435566277,22.1066,140.55,140.42,0.17]
[1720435567392,20.0,140.54,140.42,0.17]
[1720435567697,7.1174,140.5,140.42,0.17]
[1720435568070,7.118,140.49,140.42,0.17]
[1720435568693,7.1175,140.5,140.42,0.17]
[1720435569284,7.1181,140.49,140.42,0.17]
[1720435569776,7.1176,140.5,140.42,0.17]
[1720435569974,34.06,140.53,140.42,0.17]
[1720435570183,29.7554353,140.55,140.42,0.17]
[1720435570382,7.1168,140.52,140.42,0.17]
[1720435570579,7.1171,140.51,140.42,0.17]
[1720435570895,51.8503,140.53,140.42,0.17]
[1720435571506,20.0,140.52,140.42,0.17]
[1720435571799,17.7957,140.49,140.41,6.4737]
[1720435571989,7.1195,140.46,140.41,6.4737]
[1720435573284,7.1193,140.47,140.41,6.4737]
[1720435573795,7.1194,140.46,140.41,6.4737]
[1720435574294,34.06,140.47,140.36,6.3961]
[1720435574497,20.0,140.46,140.36,6.3961]
[1720435575575,7.1222,140.41,140.36,6.3961]
[1720435575898,20.0,140.46,140.36,6.3961]
[1720435576480,16.3507,140.49,140.36,140.4561]
[1720435576699,7.1198,140.46,140.36,40.4561]
[1720435576886,7.1217,140.42,140.36,13.5205]
[1720435577185,6.3111,140.46,140.38,7.1234]
[1720435577521,51.8582,140.47,140.38,7.1234]
[1720435577522,7.1206,140.44,140.38,7.1234]
[1720435577679,17.7982,140.47,140.38,7.1234]
[1720435577680,7.121,140.43,140.38,7.1234]
[1720435578295,7.121,140.43,140.39,0.17]
[1720435578496,17.8006,140.45,140.39,0.17]
[1720435578697,7.1223,140.41,140.39,0.17]
[1720435579039,27.1208,140.44,140.39,0.17]
[1720435579476,27.1208,140.44,140.39,7.2929]
[1720435579795,20.0,140.44,140.39,0.17]
[1720435580000,20.0,140.45,140.39,0.17]
[1720435580205,7.1216,140.42,140.39,0.17]
[1720435580519,7.122,140.41,140.39,0.17]
[1720435581280,7.1223,140.41,140.39,0.17]
[1720435581812,7.1225,140.4,140.39,0.17]
[1720435582501,17.8049,140.42,140.33,7.1259]
[1720435582502,7.123,140.39,140.33,13.3744]
[1720435582813,7.1225,140.4,140.33,13.3744]
[1720435583027,7.1225,140.4,140.35,7.125]
[1720435583308,7.1225,140.4,140.34,7.1253]
[1720435583495,7.1225,140.4,140.35,7.1249]
[1720435584517,7.1225,140.4,140.36,0.17]
[1720435584700,7.123,140.39,140.35,0.17]
[1720435585007,50.0483,140.44,140.35,0.17]
[1720435585008,7.1225,140.4,140.35,0.17]
[1720435585206,7.1221,140.41,140.35,7.2946]
[1720435585384,7.1215,140.42,140.37,7.1237]
[1720435585585,7.121,140.43,140.38,7.2935]
[1720435585788,23.1089,140.44,140.39,0.17]
[1720435585984,16.102,140.48,140.39,0.17]
[1720435586212,22.5371,140.53,140.4,6.6596]
[1720435586416,7.1174,140.5,140.44,7.12]
[1720435586590,56.5971,140.53,140.45,7.2898]
[1720435586792,7.1172,140.51,140.46,0.17]
[1720435587093,22.5371,140.53,140.46,0.17]
[1720435587414,7.1184,140.48,140.46,0.17]
[1720435587707,7.1189,140.47,140.46,0.17]
[1720435588298,17.7944,140.5,140.4,6.6596]
[1720435588500,17.7944,140.5,140.36,106.255]
[1720435588501,20.0,140.49,140.36,106.255]
[1720435588699,20.0,140.49,140.37,0.17]
[1720435588904,7.119,140.47,140.37,0.17]
[1720435589303,7.1198,140.46,140.37,0.17]
[1720435589501,20.0,140.49,140.37,0.17]
[1720435589710,7.1208,140.44,140.37,0.17]
[1720435590712,20.0,140.43,140.36,6.255]
[1720435590903,7.122,140.41,140.36,6.255]
[1720435591096,7.122,140.41,140.35,7.1248]
[1720435591416,7.1225,140.4,140.34,7.1254]
[1720435591991,20.0,140.43,140.33,7.1259]
[1720435592307,15.9186,140.41,140.32,6.5345]
[1720435592505,20.0,140.4,140.32,6.5345]
[1720435592816,7.1244,140.37,140.32,6.5345]
[1720435593193,20.0,140.4,140.29,6.1685]
[1720435593414,7.1234,140.39,140.33,7.1259]
[1720435593798,20.0,140.4,140.32,7.1264]
[1720435594517,20.0,140.4,140.33,0.17]
[1720435594721,7.1242,140.37,140.33,0.17]
[1720435594897,7.1236,140.38,140.33,0.17]
[1720435595097,7.1241,140.37,140.33,0.17]
[1720435597502,7.1236,140.38,140.33,0.17]
[1720435597904,7.1231,140.39,140.33,0.17]
[1720435598103,20.0,140.38,140.33,7.2959]
[1720435598510,27.1236,140.38,140.33,7.2959]
[1720435598708,7.124,140.37,140.33,0.17]
[1720435599007,20.0,140.38,140.33,0.17]
[1720435599204,23.0407,140.41,140.33,0.17]
[1720435599406,7.1216,140.42,140.37,7.1239]
[1720435599615,49.9547,140.45,140.38,7.2931]
[1720435599820,7.1209,140.44,140.39,0.17]
[1720435600122,15.8947,140.45,140.39,0.17]
[1720435600499,15.8947,140.45,140.38,0.17]
[1720435601295,20.0,140.44,140.38,0.17]
[1720435602433,37.8016,140.44,140.38,0.17]
[1720435602722,17.8044,140.42,140.3,20.0]
[1720435602920,7.1231,140.39,140.33,7.1259]
[1720435603820,7.1235,140.38,140.34,0.17]
[1720435604199,17.8044,140.42,140.34,0.17]
[1720435604401,7.1236,140.38,140.34,0.17]
[1720435604624,7.125,140.35,140.34,0.17]
[1720435604920,7.1246,140.36,140.29,13.2961]
[1720435605127,7.1241,140.37,140.29,6.1685]
[1720435606029,7.1241,140.37,140.3,0.17]
[1720435606216,51.8664,140.4,140.3,0.17]
[1720435606415,7.1239,140.38,140.31,7.1267]
[1720435606617,51.8664,140.4,140.33,7.1259]
[1720435606618,34.06,140.4,140.33,7.1259]
[1720435606819,20.0,140.39,140.34,0.17]
[1720435607320,7.1249,140.36,140.33,0.17]
[1720435607718,7.1241,140.37,140.33,0.17]
[1720435607911,20.0,140.36,140.32,0.17]
[1720435608109,7.1241,140.37,140.32,0.17]
[1720435608323,17.8077,140.39,140.32,0.17]
[1720435608324,20.0,140.36,140.32,0.17]
[1720435608707,20.0,140.38,140.32,0.17]
[1720435608936,7.1246,140.36,140.32,0.17]
[1720435609244,20.0,140.38,140.32,7.1264]
[1720435609421,20.0,140.38,140.29,6.1685]
[1720435610244,7.128,140.29,140.28,7.1264]
[1720435610546,17.04376773,140.37,140.28,7.1264]
[1720435610709,54.06,140.36,140.25,6.0336]
[1720435610911,54.06,140.36,140.27,7.129]
[1720435611104,54.06,140.36,140.25,6.0336]
[1720435611808,54.06,140.36,140.26,0.17]
[1720435612241,7.1269,140.32,140.26,7.2995]
[1720435612446,34.06,140.33,140.21,6.2797]
[1720435612612,7.1285,140.29,140.23,7.1307]
[1720435613210,51.8753,140.33,140.22,7.2995]
[1720435613211,17.8186,140.31,140.22,7.2995]
[1720435613444,20.0,140.3,140.22,7.2995]
[1720435613737,41.1861,140.33,140.27,7.1289]
[1720435613940,50.1954,140.36,140.22,107.2995]
[1720435614119,50.1954,140.36,140.28,7.1285]
[1720435614120,7.125,140.35,140.28,7.1285]
[1720435614315,7.126,140.33,140.22,141.3595]
[1720435614536,7.1265,140.32,140.22,141.3595]
[1720435614735,34.06,140.35,140.22,7.2995]
[1720435614915,7.1289,140.28,140.21,13.4113]
[1720435615244,51.8776,140.32,140.21,13.4113]
[1720435615245,51.8776,140.32,140.21,13.5792]
[1720435615537,7.1285,140.29,140.22,7.1315]
[1720435615932,7.1276,140.3,140.23,7.1306]
[1720435616138,20.0,140.29,140.23,7.1306]
[1720435616515,20.0,140.29,140.24,7.1305]
[1720435616748,20.0,140.3,140.24,7.1305]
[1720435617043,20.0,140.3,140.21,13.5792]
[1720435617212,33.963,140.3,140.21,6.2797]
[1720435617413,20.0,140.29,140.21,6.2797]
[1720435617639,54.06,140.29,140.21,6.2797]
[1720435617943,54.06,140.29,140.18,13.7654]
[1720435618248,54.06,140.29,140.19,7.1331]
[1720435618249,7.1301,140.26,140.19,7.1331]
[1720435618435,20.0,140.25,140.19,7.1331]
[1720435618638,7.1308,140.24,140.18,13.7658]
[1720435618815,20.0,140.25,140.18,6.6322]
[1720435619016,7.1306,140.24,140.18,13.7658]
[1720435619215,20.0,140.25,140.18,6.6322]
[1720435619444,7.1316,140.23,140.18,6.6322]
[1720435619740,20.0,140.26,140.18,7.1335]
[1720435619741,7.1305,140.25,140.18,7.1335]
[1720435619927,20.0,140.24,140.15,6.6322]
[1720435620123,20.0,140.26,140.15,6.6322]
[1720435620340,7.1302,140.25,140.19,7.1331]
[1720435620646,20.0,140.24,140.15,6.6322]
[1720435620847,7.1311,140.23,140.17,7.134]
[1720435621061,34.06,140.27,140.15,6.6322]
[1720435621215,7.1296,140.26,140.2,7.1326]
[1720435621415,15.1533,140.34,140.21,6.2957]
[1720435621670,15.1533,140.34,140.22,20.0]
[1720435622125,7.1271,140.31,140.25,7.13]
[1720435622327,15.1533,140.34,140.26,0.17]
[1720435622535,17.816,140.33,140.26,0.17]
[1720435622844,34.06,140.34,140.26,0.17]
[1720435623051,7.1264,140.33,140.27,7.1289]
[1720435623219,7.1266,140.32,140.28,0.17]
[1720435623625,7.1261,140.33,140.28,0.17]
[1720435624051,34.06,140.34,140.28,0.17]
[1720435624240,7.128,140.29,140.28,0.17]
[1720435624441,7.1277,140.3,140.28,0.17]
[1720435625335,17.8161,140.33,140.28,0.17]
[1720435625336,7.128,140.29,140.28,0.17]
[1720435625527,17.8161,140.33,140.21,13.4277]
[1720435625727,20.0,140.32,140.21,13.4277]
[1720435625925,7.1296,140.26,140.21,6.2957]
[1720435626454,7.1306,140.25,140.17,6.1424]
[1720435626664,20.0,140.24,140.17,6.1424]
[1720435626947,27.1307,140.24,140.18,7.1336]
[1720435627360,7.132,140.22,140.17,6.1424]
[1720435627520,20.0,140.24,140.17,6.1424]
[1720435627720,20.0,140.27,140.17,6.1424]
[1720435628020,20.0,140.28,140.17,6.1424]
[1720435628322,27.129,140.28,140.23,7.1311]
[1720435628926,15.3631,140.33,140.25,7.13]
[1720435629134,15.3631,140.33,140.26,0.17]
[1720435629330,33.179,140.33,140.24,0.17]
[1720435629532,7.1281,140.29,140.24,7.3005]
[1720435629737,7.1271,140.31,140.25,7.1299]
[1720435629931,7.1276,140.3,140.26,0.17]
[1720435630332,15.3631,140.33,140.17,6.1424]
[1720435630525,7.1295,140.27,140.21,7.1316]
[1720435630836,7.1309,140.24,140.18,7.1333]
[1720435631322,7.1312,140.23,140.17,13.2764]
[1720435631646,7.1307,140.24,140.17,6.1424]
[1720435631946,7.1315,140.23,140.17,6.1424]
[1720435632148,7.132,140.22,140.17,6.1424]
[1720435632454,7.1317,140.22,140.17,13.2765]
[1720435632618,22.3089,140.27,140.17,6.1424]
[1720435632820,20.0,140.26,140.18,7.1335]
[1720435633254,20.0,140.26,140.19,7.133]
[1720435633255,27.13,140.26,140.19,7.133]
[1720435633547,20.0,140.26,140.17,6.1424]
[1720435633922,7.1315,140.23,140.17,13.2765]
[1720435634349,7.1315,140.23,140.18,0.17]
[1720435635146,20.0,140.26,140.13,6.0722]
[1720435635356,7.1326,140.2,140.15,7.135]
[1720435635563,7.1326,140.2,140.14,7.1356]
[1720435635740,7.1331,140.19,140.14,7.1356]
[1720435635935,7.1328,140.2,140.15,7.135]
[1720435636251,7.1321,140.21,140.15,7.135]
[1720435636456,7.1323,140.21,140.16,7.1346]
[1720435636957,17.8271,140.24,140.15,7.135]
[1720435636958,7.1326,140.2,140.15,7.135]
[1720435637155,7.135,140.16,140.13,6.0722]
[1720435637354,7.1321,140.21,140.16,7.1346]
[1720435637562,20.0,140.2,140.13,6.0722]
[1720435637858,22.3089,140.27,140.13,6.0722]
[1720435638062,7.1301,140.25,140.2,7.1322]
[1720435638358,7.1312,140.23,140.18,7.1335]
[1720435638560,22.3089,140.27,140.19,0.17]
[1720435638561,7.131,140.24,140.19,0.17]
[1720435638760,22.3089,140.27,140.19,0.17]
[1720435639142,15.8143,140.27,140.19,0.17]
[1720435639544,7.1301,140.25,140.19,7.3027]
[1720435639743,7.1297,140.26,140.2,7.1325]
[1720435639973,22.679,140.31,140.24,7.1301]
[1720435640261,17.8145,140.34,140.25,0.17]
[1720435640262,6.1168,140.34,140.25,0.17]
[1720435640443,7.1266,140.32,140.26,7.1295]
[1720435640647,7.1275,140.3,140.25,0.17]
[1720435640861,41.7453,140.34,140.25,0.17]
[1720435641166,17.8165,140.32,140.25,0.17]
[1720435641545,45.9178366,140.33,140.19,6.0707]
[1720435641760,7.1307,140.24,140.19,6.0707]
[1720435642343,33.9568,140.28,140.16,13.6214]
[1720435642562,7.1322,140.21,140.16,6.4868]
[1720435643162,6.6424,140.27,140.16,6.4868]
[1720435643364,20.0,140.26,140.16,6.4868]
[1720435643551,7.1311,140.23,140.17,7.1341]
[1720435643755,27.1317,140.22,140.16,13.6214]
[1720435644668,20.0,140.22,140.16,6.4868]
[1720435644970,7.1333,140.19,140.13,6.2461]
[1720435645150,7.1327,140.2,140.14,7.1356]
[1720435645647,7.1317,140.22,140.17,7.134]
[1720435646068,20.0,140.24,140.13,6.2461]
[1720435646364,7.1311,140.23,140.14,0.17]
[1720435646575,7.1311,140.23,140.17,7.1337]
[1720435646767,7.1307,140.24,140.18,7.3036]
[1720435646967,7.1307,140.24,140.19,7.133]
[1720435647286,7.1307,140.24,140.18,0.17]
[1720435647287,7.131,140.24,140.18,0.17]
[1720435647788,7.131,140.24,140.18,7.3036]
[1720435647954,7.1312,140.23,140.18,7.3036]
[1720435648355,7.1312,140.23,140.18,0.17]
[1720435648767,7.1317,140.22,140.18,0.17]
[1720435648965,17.8246,140.26,140.17,0.17]
[1720435649166,20.0,140.25,140.16,0.17]
[1720435649351,7.1322,140.21,140.16,0.17]
[1720435649551,7.1328,140.2,140.15,7.1351]
[1720435649853,7.1328,140.2,140.13,6.2461]
[1720435649854,7.1332,140.19,140.14,7.1357]
[1720435650280,7.1327,140.2,140.14,7.1357]
[1720435650450,7.1322,140.21,140.15,7.135]
[1720435650952,7.1327,140.2,140.13,6.2461]
[1720435651271,7.1331,140.19,140.13,13.3823]
[1720435651464,20.0,140.18,140.14,0.17]
[1720435651665,6.5725,140.23,140.14,0.17]
[1720435651865,7.1333,140.19,140.13,13.3823]
[1720435652071,20.0,140.18,140.13,13.3823]
[1720435652377,20.0,140.18,140.14,7.1356]